{"text_format":"3","workbook":"xlsx","n_sheets":1,"sheets":["Krvni pritisak i šećer u krvi"],"not_rendered":{"defined_names":9},"read":"whole","date_system":"1900"}

{"sheet":"Krvni pritisak i šećer u krvi","index":0,"n_rows":13,"n_cols":11,"rows_kept":13,"merged":[[0,1,4,3],[0,4,0,9],[1,4,1,6],[1,7,1,9],[3,7,4,7],[3,8,4,8],[3,9,4,9]]}
[null,"Merač krvnog pritiska\ni šećera u krvi",null,null,"Prilagodite vrednosti na skali u ćelijama od E2 do J5 ispod."]
[{"$nulls":4},"KRVNI PRITISAK",null,null,"SKALA ŠEĆERA U KRVI"]
[{"$nulls":4},120,"SISTOLNI",140,70,100,150]
[{"$nulls":4},80,"DIJASTOLNI",90,"NIZAK","NORMALAN","VISOK"]
[{"$nulls":4},"CILJNI PRITISAK",null,"POZOVITE LEKARA"]
[null,"Datum","Vreme","Događaj","Sistolni","Dijastolni","Puls","Šećer u krvi","Nivo","Status","Beleške"]
[null,{"$f":"TODAY()","v":"2018-06-28"},"06:00:00","Buđenje",129,79,72,55,{"$f":"KrvniPritisakŠećeruKrvi[[#This Row],[Šećer u krvi]]","v":55},{"$f":"IFERROR(IF(KrvniPritisakŠećeruKrvi[[#This Row],[Nivo]]=0,\"\",IF(KrvniPritisakŠećeruKrvi[[#This Row],[Nivo]]<=ŠNizak,\"NIZAK\",IF(AND(KrvniPritisakŠećeruKrvi[[#This Row],[Nivo]]>ŠNizak,KrvniPritisakŠećeruKrvi[[#This Row],[Nivo]]<ŠVisok),\"NORMALAN\",\"VISOK\"))), \"\")","v":"NIZAK"}]
[null,{"$f":"TODAY()","v":"2018-06-28"},"07:00:00","Pre obroka",120,80,74,70,{"$f":"KrvniPritisakŠećeruKrvi[[#This Row],[Šećer u krvi]]","v":70},{"$f":"IFERROR(IF(KrvniPritisakŠećeruKrvi[[#This Row],[Nivo]]=0,\"\",IF(KrvniPritisakŠećeruKrvi[[#This Row],[Nivo]]<=ŠNizak,\"NIZAK\",IF(AND(KrvniPritisakŠećeruKrvi[[#This Row],[Nivo]]>ŠNizak,KrvniPritisakŠećeruKrvi[[#This Row],[Nivo]]<ŠVisok),\"NORMALAN\",\"VISOK\"))), \"\")","v":"NIZAK"}]
[null,"2018-06-28","09:00:00","Posle obroka",133,80,75,75,{"$f":"KrvniPritisakŠećeruKrvi[[#This Row],[Šećer u krvi]]","v":75},{"$f":"IFERROR(IF(KrvniPritisakŠećeruKrvi[[#This Row],[Nivo]]=0,\"\",IF(KrvniPritisakŠećeruKrvi[[#This Row],[Nivo]]<=ŠNizak,\"NIZAK\",IF(AND(KrvniPritisakŠećeruKrvi[[#This Row],[Nivo]]>ŠNizak,KrvniPritisakŠećeruKrvi[[#This Row],[Nivo]]<ŠVisok),\"NORMALAN\",\"VISOK\"))), \"\")","v":"NORMALAN"}]
[null,"2018-06-28","10:00:00","Samo KP",143,91,75,190,{"$f":"KrvniPritisakŠećeruKrvi[[#This Row],[Šećer u krvi]]","v":190},{"$f":"IFERROR(IF(KrvniPritisakŠećeruKrvi[[#This Row],[Nivo]]=0,\"\",IF(KrvniPritisakŠećeruKrvi[[#This Row],[Nivo]]<=ŠNizak,\"NIZAK\",IF(AND(KrvniPritisakŠećeruKrvi[[#This Row],[Nivo]]>ŠNizak,KrvniPritisakŠećeruKrvi[[#This Row],[Nivo]]<ŠVisok),\"NORMALAN\",\"VISOK\"))), \"\")","v":"VISOK"}]
[null,"2018-06-28","12:00:00","Pre obroka",141,84,70,140,{"$f":"KrvniPritisakŠećeruKrvi[[#This Row],[Šećer u krvi]]","v":140},{"$f":"IFERROR(IF(KrvniPritisakŠećeruKrvi[[#This Row],[Nivo]]=0,\"\",IF(KrvniPritisakŠećeruKrvi[[#This Row],[Nivo]]<=ŠNizak,\"NIZAK\",IF(AND(KrvniPritisakŠećeruKrvi[[#This Row],[Nivo]]>ŠNizak,KrvniPritisakŠećeruKrvi[[#This Row],[Nivo]]<ŠVisok),\"NORMALAN\",\"VISOK\"))), \"\")","v":"NORMALAN"}]
[null,{"$f":"TODAY()","v":"2018-06-28"},"15:00:00","Posle obroka",132,80,68,90,{"$f":"KrvniPritisakŠećeruKrvi[[#This Row],[Šećer u krvi]]","v":90},{"$f":"IFERROR(IF(KrvniPritisakŠećeruKrvi[[#This Row],[Nivo]]=0,\"\",IF(KrvniPritisakŠećeruKrvi[[#This Row],[Nivo]]<=ŠNizak,\"NIZAK\",IF(AND(KrvniPritisakŠećeruKrvi[[#This Row],[Nivo]]>ŠNizak,KrvniPritisakŠećeruKrvi[[#This Row],[Nivo]]<ŠVisok),\"NORMALAN\",\"VISOK\"))), \"\")","v":"NORMALAN"},"Popio/la lek za KP uz obrok"]
[null,"Prosečne vrednosti",null,null,{"$f":"SUBTOTAL(101,KrvniPritisakŠećeruKrvi[Sistolni])","v":133},{"$f":"SUBTOTAL(101,KrvniPritisakŠećeruKrvi[Dijastolni])","v":{"v":82.33333333333333,"d":"82"}},{"$f":"SUBTOTAL(101,KrvniPritisakŠećeruKrvi[Puls])","v":{"v":72.33333333333333,"d":"72"}},{"$f":"SUBTOTAL(101,KrvniPritisakŠećeruKrvi[Šećer u krvi])","v":{"v":103.33333333333333,"d":"103"}}]